{"text_format":"3","workbook":"xlsx","n_sheets":2,"sheets":["list","data"],"not_rendered":{"defined_names":8},"read":"whole","date_system":"1900"}

{"sheet":"list","index":0,"n_rows":55,"n_cols":17,"rows_kept":55}
["№","Название ОУ","Фамилия","Имя","Имя","Отчество","Отчество","Класс","Класс участия","Первичный балл","Добавлено по итогам апелляций","Итоговый балл","Макс. Балл","Статус","Призер регионального / республиканского этапа прошлого года","Учитель","Место работы учителя"]
[1,"МБОУ \"СОШ №1\"","Зайкина","Самира",{"$f":"LEFT(D2)","v":"С"},"Константиновна",{"$f":"LEFT(F2)","v":"К"},7,7,14.5,null,{"$f":"J2+K2","v":14.5},46,"участник",null,"Федотова Светлана Николаевна","СОШ1"]
[2,"МБОУ \"СОШ №1\"","Скороход","Михаил",{"$f":"LEFT(D3)","v":"М"},"Олегович",{"$f":"LEFT(F3)","v":"О"},7,7,27,null,{"$f":"J3+K3","v":27},46,"призер",null,"Федотова Светлана Николаевна","СОШ1"]
[3,"МБОУ \"СОШ №1\"","Петраев","Максим","М","Леонидович","Л",7,7,13.5,null,{"$f":"J4+K4","v":13.5},46,"участник",null,"Федотова Светлана Николаевна","СОШ1"]
[4,"МБОУ \"СОШ №1\"","Ялаев","Вильдан","В","Рустемович","Р",7,7,24,null,24,46,"призер",null,"Федотова Светлана Николаевна","СОШ1"]
[5,"МБОУ \"СОШ №2\" г. Мензелинска РТ","Коростина","Ариадна","А","Николаевна","Н",7,7,19,null,19,46,"участник",null,"Зиязиева Рушания Разяповна","МБОУ СОШ2"]
[6,"МБОУ \"СОШ №2\" г. Мензелинска РТ","Баскакова","Ева","Е","Станиславовна","С",7,7,12,null,12,46,"участник",null,"Зиязиева Рушания Разяповна","МБОУ СОШ2"]
[7,"МБОУ \"СОШ №2\" г. Мензелинска РТ","Винокурова","Евгения","Е","Николаевна","Н",7,7,12,null,12,46,"участник",null,"Зиязиева Рушания Разяповна","МБОУ СОШ2"]
[8,"МБОУ \"СОШ №3\"","Галимарданова","Яна","Я","Ильназовна","И",7,7,5,null,5,46,"участник",null,"Аникина Наталья Леонидовна","МБОУ \"СОШ №3 г. Мензелинчска РТ"]
[9,"МБОУ \"Коноваловская ООШ им. Горячева А. А. \"","Егорова","София","С","Евгеньевна","Е",7,7,11,null,11,46,"участник",null,"Акбашева Лилия Ильгизовна","МБОУ «Коноваловская ООШ имени Горячева А.А.»"]
[10,"МБОУ \"Кузембетьевская СОШ им.Х.Г.Хусаинова\"","Гарифуллин","Артем","А","Альбертович","А",7,7,13.5,null,13.5,46,"участник",null,"Галиева Гульназ Фазилевна","МБОУ\"Кузембетьевская СОШ им.Х.Г.Хусаинова\""]
[11,"МБОУ \"Кузембетьевская СОШ им.Х.Г.Хусаинова\"","Гильманова","Ралина","Р","Рамилевна","Р",7,7,15,null,15,46,"участник",null,"Галиева Гульназ Фазилевна","МБОУ\"Кузембетьевская СОШ им.Х.Г.Хусаинова\""]
[12,"МБОУ \"Гимназия\" г.Мензелинска РТ","Ахметова","Лейла","Л","Рамильевна","Р",7,7,10.5,null,10.5,46,"участник",null,"Минлегареева Лилия Владимировна","МБОУ \"Гимназия\" г.Мензелинска РТ"]
[13,"МБОУ \"Гимназия\" г.Мензелинска РТ","Галиева","Язгуль","Я","Фаязовна","Ф",7,7,11.5,null,11.5,46,"участник",null,"Минлегареева Лилия Владимировна","МБОУ \"Гимназия\" г.Мензелинска РТ"]
[14,"МБОУ \"Аюская ООШ имени Р.Х.Кагирова\"","Гайнетдинова","Гулия","Г","Ильдаровна","И",7,7,9.5,null,9.5,46,"участник",null,"Набиева Салиса Раффаковна","МБОУ \"Аюская ООШ имени Р.Х.Кагирова\""]
[15,"МБОУ \"Подгорнобайларская ООШ\"","Абдуллаев","Марсель","М","Артурович","А",7,7,14,null,14,46,"участник",null,"Горохова Татьяна Леонидовна","МБОУ \"Подгорнобайларская ООШ\""]
[16,"МБОУ \"Татарскомушугинская СОШ им.К.А.Смирновой\"","Саматова","Зарина","З","Салаватовна","С",7,7,13,null,13,46,"участник",null,"Фатихова  Лайсира Мурзагидановна","МБОУ \"Татарскомушугинская СОШ имени К.А.Смирновой\""]
[17,"МБОУ \"Урусовская ООШ имени Р.Закирова\"","Газизянов","Салават","С","Фанисович","Ф",7,7,9.5,null,9.5,46,"участник",null,"Сабирова Светлана Рафаэлевна","МБОУ \"Урусовская ООШ имени Р.Закирова\""]
[18,"МБОУ \"Верхнетакерменская ООШ им. Г.Сабитова\"","Якиева","Элина","Э","Рамисовна","Р",7,7,34.5,null,34.5,46,"победитель",null,"Шарафетдинова Фарида Рафисовна","МБОУ \"Верхнетакерменская ООШ\""]
[19,"МБОУ \"СОШ №1\"","Гассман","Александра","А","Викторовна","В",8,8,17.5,null,{"$f":"J20+K20","v":17.5},46,"участник",null,"Федотова Светлана Николаевна","СОШ1"]
[20,"МБОУ \"СОШ №2\" г. Мензелинска РТ","Нуретдинов","Салават","С","Айратович","А",8,8,12.5,null,{"$f":"J21+K21","v":12.5},46,"участник",null,"Зиязиева Рушания Разяповна","МБОУ СОШ2"]
[21,"МБОУ \"СОШ №2\" г. Мензелинска РТ","Белянинов","Савелий","С","Александрович","А",8,8,11.5,null,{"$f":"J22+K22","v":11.5},46,"участник",null,"Зиязиева Рушания Разяповна","МБОУ СОШ2"]
[22,"МБОУ \"Коноваловская ООШ им. Горячева А. А. \"","Зотова","Анастасия","А","Глебовна","Г",8,8,10,null,10,46,"участник",null,"Акбашева Лилия Ильгизовна","МБОУ «Коноваловская ООШ имени Горячева А.А.»"]
[23,"МБОУ \"Николаевская ООШ им. С.А. Кузнецова\"","Алексеева","Анна","А","Витальевна","В",8,8,27,null,27,46,"призер",null,"Урошникова Надежда Михайловна","МБОУ \"Николаевская ООШ им. С.А.Кузнецова\""]
[24,"МБОУ \"Гимназия\" г.Мензелинска РТ","Шигапова","Камила","К","Ринасовна","Р",8,8,38.5,null,38.5,46,"победитель",null,"Минлегареева Лилия Владимировна","МБОУ \"Гимназия\" г.Мензелинска РТ"]
[25,"МБОУ \"Татарскомушугинская СОШ им.К.А.Смирновой\"","Рахматуллин","Ранис","Р","Рамилевич","Р",8,8,12,null,12,46,"участник",null,"Фатихова  Лайсира Мурзагидановна","МБОУ \"Татарскомушугинская СОШ имени К.А.Смирновой\""]
[26,"МБОУ \"Верхнетакерменская ООШ им. Г.Сабитова\"","Мухаметшина","Халима","Х","Ильдаровна","И",8,8,13.5,null,13.5,46,"участник",null,"Шарафетдинова Фарида Рафисовна","МБОУ \"Верхнетакерменская ООШ\""]
[27,"МБОУ \"Верхнетакерменская ООШ им. Г.Сабитова\"","Гатина","Лейла","Л","Камилевна","К",7,8,29,null,29,46,"призер",null,"Шарафетдинова Фарида Рафисовна","МБОУ \"Верхнетакерменская ООШ\""]
[28,"МБОУ \"СОШ №1\"","Малышева","Алёна","А","Владимировна","В",9,9,17,null,17,58,"участник",null,"Федотова Светлана Николаевна","СОШ1"]
[29,"МБОУ \"СОШ №1\"","Мансурова","Алия","А","Мансуровна","М",9,9,17,null,17,58,"участник",null,"Федотова Светлана Николаевна","СОШ1"]
[30,"МБОУ \"СОШ №1\"","Садыкова","Аделина","А","Ильдаровна","И",9,9,21,null,21,58,"участник",null,"Федотова Светлана Николаевна","СОШ1"]
[31,"МБОУ \"СОШ №1\"","Никитин","Артур","А","Русланович","Р",9,9,24,null,24,58,"участник",null,"Федотова Светлана Николаевна","СОШ1"]
[32,"МБОУ \"СОШ №1\"","Юдина","Мария","М","Егоровна","Е",9,9,24,null,24,58,"участник",null,"Федотова Светлана Николаевна","СОШ1"]
[33,"МБОУ \"СОШ №2\" г. Мензелинска РТ","Сафина","Ильзира","И","Ильдусовна","И",9,9,6,null,6,58,"участник",null,"Зиязиева Рушания Разяповна","МБОУ СОШ2"]
[34,"МБОУ \"СОШ №2\" г. Мензелинска РТ","Кузнецова","Варвара","В","Ивановна","И",9,9,7,null,7,58,"участник",null,"Зиязиева Рушания Разяповна","МБОУ СОШ2"]
[35,"МБОУ \"Кузембетьевская СОШ им.Х.Г.Хусаинова\"","Зарипова","Азалия","А","Ильдаровна","И",9,9,10,null,10,58,"участник",null,"Галиева Гульназ Фазилевна","МБОУ\"Кузембетьевская СОШ им.Х.Г.Хусаинова\""]
[36,"МБОУ \"Кузембетьевская СОШ им.Х.Г.Хусаинова\"","Шияпов","Риналь","Р","Артурович","А",9,9,10,null,10,58,"участник",null,"Галиева Гульназ Фазилевна","МБОУ\"Кузембетьевская СОШ им.Х.Г.Хусаинова\""]
[37,"МБОУ \"Николаевская ООШ им. С.А. Кузнецова\"","Самойлова","Диана","Д","Александровна","А",9,9,14,null,14,58,"участник",null,"Урошникова Надежда Михайловна","МБОУ \"Николаевская ООШ им. С.А.Кузнецова\""]
[38,"МБОУ \"Гимназия\" г.Мензелинска РТ","Исрафилов","Амир","А","Раянович","Р",9,9,15,null,15,58,"участник",null,"Минлегареева Лилия Владимировна","МБОУ \"Гимназия\" г.Мензелинска РТ"]
[39,"МБОУ \"Подгорнобайларская ООШ\"","Зайнуллина","Адиля","А","Маратовна","М",9,9,30,null,30,58,"призер",null,"Горохова Татьяна Леонидовна","МБОУ \"Подгорнобайларская ООШ\""]
[40,"МБОУ \"Татарскомушугинская СОШ им.К.А.Смирновой\"","Саматова","Лейла","Л","Салаватовна","С",9,9,8,null,8,58,"участник",null,"Фатихова  Лайсира Мурзагидановна","МБОУ \"Татарскомушугинская СОШ имени К.А.Смирновой\""]
[41,"МБОУ \"Урусовская ООШ имени Р.Закирова\"","Ахметова","Айгуль","А","Расулевна","Р",9,9,16,null,16,58,"участник",null,"Сабирова Светлана Рафаэлевна","МБОУ \"Урусовская ООШ имени Р.Закирова\""]
[42,"МБОУ \"Верхнетакерменская ООШ им. Г.Сабитова\"","Якиева","Айсылу","А","Рафиковна","Р",9,9,36,null,36,58,"призер",null,"Шарафетдинова Фарида Рафисовна","МБОУ \"Верхнетакерменская ООШ\""]
[43,"МБОУ \"СОШ №1\"","Галиева","Руфина","Р","Раефовна","Р",10,10,22,null,22,65,"участник",null,"Федотова Светлана Николаевна","СОШ1"]
[44,"МБОУ \"СОШ №1\"","Уханова","Яна","Я","Дмитриевна","Д",10,10,12,null,12,65,"участник",null,"Федотова Светлана Николаевна","СОШ1"]
[45,"МБОУ \"СОШ №2\" г. Мензелинска РТ","Фаррахова","Алина","А","Азатовна","А",10,10,10,null,10,65,"участник",null,"Зиязиева Рушания Разяповна","МБОУ СОШ2"]
[46,"МБОУ \"СОШ №2\" г. Мензелинска РТ","Яруллина","Камилла","К","Андреевна","А",10,10,6,null,6,65,"участник",null,"Зиязиева Рушания Разяповна","МБОУ СОШ2"]
[47,"МБОУ \"Гимназия\" г.Мензелинска РТ","Фаттахова","Зарина","З","Зуфаровна","З",10,10,17,null,17,65,"участник",null,"Минлегареева Лилия Владимировна","МБОУ \"Гимназия\" г.Мензелинска РТ"]
[48,"МБОУ \"СОШ №1\"","Зайнуллин","Руслан","Р","Рустемович","Р",11,11,24,null,24,72,"участник",null,"Федотова Светлана Николаевна","СОШ1"]
[49,"МБОУ \"СОШ №1\"","Муллагалиева","Айзиля","А","Маратовна","М",11,11,30,null,30,72,"участник",null,"Федотова Светлана Николаевна","СОШ1"]
[50,"МБОУ \"СОШ №1\"","Газетдинова","Эльвира","Э","Ильнаровна","И",11,11,19,null,19,72,"участник",null,"Федотова Светлана Николаевна","СОШ1"]
[51,"МБОУ \"СОШ №2\" г. Мензелинска РТ","Рахматуллина","Азалия","А","Ильдаровна","И",11,11,27,null,27,72,"участник",null,"Зиязиева Рушания Разяповна","МБОУ СОШ2"]
[52,"МБОУ \"СОШ №3\"","Хамитова","Карина","К","Раифовна","Р",11,11,15,null,15,72,"участник",null,"Аникина Наталья Леонидовна","МБОУ \"СОШ №3 г. Мензелинчска РТ"]
[53,"МБОУ \"СОШ №3\"","Назарова","София","С","Михайловна","М",11,11,23,null,23,72,"участник",null,"Аникина Наталья Леонидовна","МБОУ \"СОШ №3 г. Мензелинчска РТ"]
[54,"МБОУ \"Татарскомушугинская СОШ им.К.А.Смирновой\"","Хуснутдинова","Гузель","Г","Ильфатовна","И",11,11,23,null,23,72,"участник",null,"Фатихова  Лайсира Мурзагидановна","МБОУ \"Татарскомушугинская СОШ имени К.А.Смирновой\""]

{"sheet":"data","index":1,"n_rows":25,"n_cols":10,"rows_kept":25}
[{"$nulls":6},"1 - Техника, технология и техническое творчество","2 - Культура дома, дизайн и технологии","3 - Робототехника","4 - Информационная безопасность"]
["1 - Техника, технологии и техническое творчество","1.1  Практика по ручной деревообработке",{"$nulls":4},"1.1 Практика по ручной деревообработке","2.1 Ручная обработка швейного изделия или узла","3.1 Робототехника","4.1 Не предусмотрена"]
["2 - Культура дома, дизайн и технологии","1.2 Практика по механической деревообработке",{"$nulls":4},"1.2 Практика по механической деревообработке","2.2 Механическая обработка швейного изделия или узла + Моделирование"]
["3 - Робототехника","1.3 Практика по ручной металлообработке",{"$nulls":4},"1.3 Практика по ручной металлообработке","2.3 Обработка швейного изделия или узла на швейно-вышивальном оборудовании + Моделирование"]
["4 - Информационная безопасность","1.4 Практика по механической металлообработке",{"$nulls":4},"1.4 Практика по механической металлообработке","2.4 3D-моделирование и печать"]
[null,"1.5 Электрорадиотехника",{"$nulls":4},"1.5 Электрорадиотехника","2.5 Практика по работе на лазерно-гравировальном станке"]
[null,"1.6 3D-моделирование и печать",{"$nulls":4},"1.6 3D-моделирование и печать","2.6 Промышленный дизайн"]
[null,"1.7 Практика по работе на лазерно-гравировальном станке",{"$nulls":4},"1.7 Практика по работе на лазерно-гравировальном станке"]
[null,"1.8 Промышленный дизайн",{"$nulls":4},"1.8 Промышленный дизайн"]
[null,"2.1 Ручная обработка швейного изделия или узла"]
[null,"2.2 Механическая обработка швейного изделия или узла + Моделирование"]
[null,"2.3 Обработка швейного изделия или узла на швейно-вышивальном оборудовании + Моделирование"]
[null,"2.4 3D-моделирование и печать"]
[null,"2.5 Практика по работе на лазерно-гравировальном станке"]
[null,"2.6 Промышленный дизайн"]
[null,"3.1 Робототехника"]
[null,"4.1 Не предусмотрена"]
[]
[]
[]
[]
[]
["участник"]
["призер",null,"да","да",null,"м"]
["победитель",null,null,"нет",null,"ж"]